{"text_format":"2","workbook":"xlsx","n_sheets":12,"sheets":["Költségösszesítő nyilatkozat","(54-56) személyi+járulék","(51) anyagköltség ","(52) igénybe vett szolg","(53) egyéb szolgáltatások","(11) immat jav beszerz","(13) műszaki berendezések","(14) egyéb berendezések","(16) beruházás,felújítás","(LNY) lemondó nyilatkozat","Támogatás típusa","támogatás típusai"],"not_rendered":{"charts":0,"images":0,"macros":0,"external_links":0,"defined_names":17,"comments":0,"pivot_tables":0},"unopened":[],"bounds":{"document_bytes":16777216,"sheet_cells":100000,"run_cost":"one","rows_first":2000,"rows_last":500,"rows_between":2000,"halvings":0,"cell_chars":16384,"cell_head_chars":4096},"cells_cut":0,"cells_raw":0,"read":"whole","date_system":"1900"}

{"sheet":"Költségösszesítő nyilatkozat","index":0,"n_rows":47,"n_cols":5,"rows_kept":47,"cut":false,"hidden":false,"merged":[[39,0,39,4],[45,0,45,4],[46,0,46,4],[3,1,3,2],[5,1,5,2],[6,1,6,2],[14,0,14,4],[33,2,33,4],[36,0,36,4]]}
["Egy példányban kitöltve, eredeti aláírással és bélyegzéssel ellátva kell benyújtani.",null,null,null,"Formanyomtatvány pénzügyi elszámoláshoz"]
["A táblázat adatai a többi munkalapról automatikusan bemásolódnak!"]
[]
["Kedvezményezett neve:"]
["Kötelezettségvállalás azonosító száma:"]
["Szerződésszám:"]
["Az elszámolással érintett időszak kezdete és vége:"]
[]
[]
[]
[null,null,"N Y I L A T K O Z A T"]
[null,null,"(a kedvezményezett tölti ki)"]
[]
[]
["Alulírott <név>, mint a <kedvezményezett megnevezése> társaság/szervezet cégjegyzésre jogosult vezetője teljes jogi felelősséggel nyilatkozom, hogy a fenti támogatási szerződés alapján a szakmai és pénzügyi beszámolóra vonatkozó előírások szerint a támogatás és a saját/egyéb forrás felhasználásáról, valamint a kamatok tekintetében teljes körű, elkülönített nyilvántartást vezetek. \nAz elszámolni kívánt költségek az adott projektre vonatkozó tárgyi és időbeli elszámolhatósági szabályokkal összhangban, számlákkal vagy egyéb a költséget igazoló számviteli bizonylatokkal alátámasztva, teljesítésigazolás mellett kerültek felhasználásra és azokra további EU-s vagy egyéb hazai támogatás nem került elszámolásra.\nA szerződés melléklete alapján, a számlaösszesítőkben feltüntetett részfeladatok teljesítése során keletkezett ráfordítások összege < összeg számmal Ft-ban> Ft azaz <összeg betűvel Ft-ban>, az alábbi forrásonként és jogcímenként kerülnek elszámolásra. A kimutatott ráfordítások a szerződésben vállalt célok megvalósítása érdekében merültek fel."]
[]
[]
["Költségtípusok","Támogatás (Ft)","Saját forrás (Ft)","Egyéb forrás (Ft)","Összesen (Ft)"]
["54. Személyi juttatások ",{"$f":"+'(54-56) személyi+járulék'!N27","v":0},{"$f":"+'(54-56) személyi+járulék'!O27","v":0},{"$f":"+'(54-56) személyi+járulék'!P27","v":0},{"$f":"SUM(B19:D19)","v":0}]
["56. Munkaadókat terhelő járulékok ",{"$f":"+'(54-56) személyi+járulék'!Q27","v":0},{"$f":"+'(54-56) személyi+járulék'!R27","v":0},{"$f":"+'(54-56) személyi+járulék'!S27","v":0},0]
["51. Anyagköltség",{"$f":"+'(51) anyagköltség '!L29","v":0},{"$f":"+'(51) anyagköltség '!M29","v":0},{"$f":"+'(51) anyagköltség '!N29","v":0},0]
["52. Igénybe vett szolgáltatások",{"$f":"+'(52) igénybe vett szolg'!L29","v":0},{"$f":"+'(52) igénybe vett szolg'!M29","v":0},{"$f":"+'(52) igénybe vett szolg'!N29","v":0},0]
["53. Egyéb szolgáltatások",{"$f":"+'(53) egyéb szolgáltatások'!L25","v":0},{"$f":"+'(53) egyéb szolgáltatások'!M25","v":0},{"$f":"+'(53) egyéb szolgáltatások'!N25","v":0},0]
["11. Immateriális javak",{"$f":"+'(11) immat jav beszerz'!O27","v":0},{"$f":"+'(11) immat jav beszerz'!P27","v":0},{"$f":"+'(11) immat jav beszerz'!Q27","v":0},0]
["13. Műszaki gépek berendezések, járművek",{"$f":"+'(13) műszaki berendezések'!O27","v":0},{"$f":"+'(13) műszaki berendezések'!P27","v":0},{"$f":"+'(13) műszaki berendezések'!Q27","v":0},0]
["14. Egyéb berendezések, felszerelések, járművek",{"$f":"+'(14) egyéb berendezések'!O27","v":0},{"$f":"+'(14) egyéb berendezések'!P27","v":0},{"$f":"+'(14) egyéb berendezések'!Q27","v":0},0]
["16. Beruházások, felújítások",{"$f":"+'(16) beruházás,felújítás'!O27","v":0},{"$f":"+'(16) beruházás,felújítás'!P27","v":0},{"$f":"+'(16) beruházás,felújítás'!Q27","v":0},0]
["Összesen:",{"$f":"SUM(B19:B27)","v":0},{"$f":"SUM(C19:C27)","v":0},0,{"$f":"SUM(E19:E27)","v":0}]
[]
["……………………….,  …………év …………….hó …….nap."]
[]
[]
[null,null,null,"…………………………"]
[null,null,"            Kedvezményezett képviseletére jogosult vezető aláírása*"]
[null,null,null,"PH."]
[]
["Alulírott <név>, mint a <kedvezményezett megnevezése> társaság/szervezet (megbízott) könyvvizsgálója, és <név>, mint a <kedvezményezett megnevezése> társaság/szervezet gazdasági vezetője igazolom, hogy a fenti adatok a <kedvezményezett megnevezése> társaság/szervezet elkülönített számviteli nyilvántartásával megegyeznek."]
[]
["………………………., ……….év ………………hó ……nap."]
[]
[]
[null,"……………………….",null,null,"…………………………"]
[null,"gazdasági vezető aláírása/könyvvizsgáló*",null,null,"Kedvezményezett cégszerű aláírása *"]
[]
[]
[]
["* Az aláírók nevét nyomtatott betűkkel is kérjük kitölteni."]

{"sheet":"(54-56) személyi+járulék","index":1,"n_rows":29,"n_cols":21,"rows_kept":29,"cut":false,"hidden":false,"merged":[[5,0,5,20],[7,5,8,5],[7,16,7,18],[7,7,7,9],[7,10,7,12],[7,13,7,15],[0,0,0,5],[2,0,2,5],[3,0,3,5],[0,6,0,10],[2,6,2,10],[3,6,3,10],[1,0,1,5],[1,6,1,10],[28,0,30,20],[25,0,25,20],[26,0,26,6],[7,0,7,1],[7,6,8,6],[7,19,8,19],[7,2,7,3],[7,20,8,20],[7,4,8,4]]}
["Kedvezményezett neve:",{"$nulls":5},{"$f":"+'Költségösszesítő nyilatkozat'!$B4","v":0}]
["Kötelezettségvállalás azonosító száma:",{"$nulls":5},{"$f":"+'Költségösszesítő nyilatkozat'!$B5","v":0}]
["Szerződésszám:",{"$nulls":5},{"$f":"+'Költségösszesítő nyilatkozat'!$B6","v":0}]
["Mérföldkő dátuma::",{"$nulls":5},{"$f":"+'Költségösszesítő nyilatkozat'!$B7","v":"00:00:00"}]
[]
["54 -56 SZEMÉLYI JUTTATÁSOK ÉS JÁRULÉKAI"]
[]
["Projektben résztvevő dolgozók",null,"Az elszámolt időszak",null,"Az adott hónapban a projektre elszámolt munka-órák száma*","Pénzügyi teljesítés időpontja","Állandó dolgozó (Á), vagy megbí-zásos dolgozó (M)  (legördülő menű)","Projektre elszámolt bruttó bér (Ft)",null,null,"Projektre elszámolt egyéb juttatások (Ft) (pld. napidíj, stb.)",null,null,"Projektre elszámolt bruttó bér és juttatások összesen (Ft)",null,null,"Projektre elszámolt bruttó bér járuléka (Ft)",null,null,"Állami támogatási kategória (Támogatás típusa)","Tám. int."]
["neve","státusza (legördülő menű)\n","kezdete (dátum)","vége (dátum)",null,null,null,"Támogatás","Saját forrás","Egyéb forrás","Támogatás","Saját forrás","Egyéb forrás","Támogatás","Saját forrás","Egyéb forrás","Támogatás","Saját forrás","Egyéb forrás"]
[null,"K+F munkatárs",{"$nulls":11},{"$f":"H10+K10","v":0},{"$f":"I10+L10","v":0},{"$f":"J10+M10","v":0},null,null,null,"D.M./Közbesz."]
[null,"Techn., segédszem.",{"$nulls":11},{"$f":"H11+K11","v":0},{"$f":"I11+L11","v":0},{"$f":"J11+M11","v":0}]
[null,"Pr.menedzser",{"$nulls":11},0,0,0]
[null,"Egyéb ",{"$nulls":11},0,0,0]
[{"$nulls":13},0,0,0]
[{"$nulls":13},0,0,0]
[{"$nulls":13},0,0,0]
[{"$nulls":13},0,0,0]
[{"$nulls":13},0,0,0]
[{"$nulls":13},0,0,0]
[{"$nulls":13},0,0,0]
[{"$nulls":13},0,0,0]
[{"$nulls":13},0,0,0]
[{"$nulls":13},0,0,0]
[{"$nulls":13},0,0,0]
[{"$nulls":13},0,0,0]
[]
["Összesen:",{"$nulls":6},{"$f":"SUM(H10:H25)","v":0},{"$f":"SUM(I10:I25)","v":0},0,0,0,0,0,0,0,0,0,0]
[]
["* Amennyiben a pályázati felhívás/útmutató megengedi a szabadság, betegszabadság, ünnepnap elszámolását a projekt terhére, úgy szíveskedjenek a feltüntetett munkaórákba beleszámítani ezek idejét is!"]

{"sheet":"(51) anyagköltség ","index":2,"n_rows":29,"n_cols":17,"rows_kept":29,"cut":false,"hidden":false,"merged":[[27,0,27,16],[28,0,28,7],[28,15,28,16],[5,0,5,16],[7,0,8,0],[7,1,8,1],[7,2,8,2],[7,3,8,3],[7,4,8,4],[7,5,8,5],[7,6,8,6],[7,7,8,7],[7,8,7,10],[7,11,7,14],[7,15,8,15],[7,16,8,16],[0,0,0,3],[0,4,0,8],[2,0,2,3],[2,4,2,8],[3,0,3,3],[3,4,3,8],[1,0,1,3],[1,4,1,8]]}
["Kedvezményezett neve:"]
["Kötelezettségvállalás azonosító száma:"]
["Szerződésszám:"]
["Az elszámolással érintett időszak kezdete és vége:"]
[]
["51 Anyagköltség"]
[]
["Sor-szám","Számviteli bizonylat kiállítójának neve","Adószáma","Számviteli bizonylat sorszáma","Kiállítás kelte","Teljesítés dátuma","Pénzügyi teljesítés időpontja","Gazdasági esemény rövid leírása","Összege (Ft)",null,null,"Projekt terhére elszámolt költségek (Ft)",null,null,null,"Támogatás típusa","Tám. int."]
["szám",{"$nulls":7},"Bruttó","Nettó","ÁFA","Támogatás","Saját forrás","Egyéb f.","Összesen"]
["1.",{"$nulls":13},{"$f":"SUM(L10:N10)","v":0},"K+F/Alkalm."]
["2.",{"$nulls":13},{"$f":"SUM(L11:N11)","v":0}]
[{"$nulls":14},0]
[{"$nulls":14},0]
[{"$nulls":14},0]
[{"$nulls":14},0]
[{"$nulls":14},0]
[{"$nulls":14},0]
[{"$nulls":14},0]
[{"$nulls":14},0]
[{"$nulls":14},0]
[{"$nulls":14},0]
[{"$nulls":14},0]
[{"$nulls":14},0]
[{"$nulls":14},0]
[{"$nulls":14},0]
[{"$nulls":14},0]
[{"$nulls":14},0]
[]
[" Összesen",{"$nulls":7},{"$f":"SUM(I10:I27)","v":0},0,0,0,0,0,0]

{"sheet":"(52) igénybe vett szolg","index":3,"n_rows":29,"n_cols":17,"rows_kept":29,"cut":false,"hidden":false,"merged":[[7,8,7,10],[28,15,28,16],[7,15,8,15],[7,7,8,7],[7,6,8,6],[27,0,27,16],[7,16,8,16],[7,11,7,14],[7,2,8,2],[7,3,8,3],[28,0,28,7],[7,4,8,4],[7,5,8,5],[7,1,8,1],[7,0,8,0],[5,0,5,16],[0,4,0,8],[2,4,2,8],[3,0,3,3],[3,4,3,8],[2,0,2,3],[0,0,0,3],[1,0,1,3],[1,4,1,8]]}
["Kedvezményezett neve:"]
["Kötelezettségvállalás azonosító száma:"]
["Szerződésszám:"]
["Az elszámolással érintett időszak kezdete és vége:"]
[]
[" 52 Igénybe vett szolgáltatások "]
[]
["Sor-szám","Számviteli bizonylat kiállítójának neve","Adószáma","Számviteli bizonylat sorszáma","Kiállítás kelte","Teljesítés dátuma","Pénzügyi teljesítés időpontja","Gazdasági esemény rövid leírása","Összege (Ft)",null,null,"Projekt terhére elszámolt költségek (Ft)",null,null,null,"Támogatás típusa","Tám. int."]
["szám",{"$nulls":7},"Bruttó","Nettó","ÁFA","Támogatás","Saját forrás","Egyéb f.","Összesen"]
["1.",{"$nulls":13},{"$f":"SUM(L10:N10)","v":0},"K+F/Alap."]
["2.",{"$nulls":13},{"$f":"SUM(L11:N11)","v":0}]
[{"$nulls":14},0]
[{"$nulls":14},0]
[{"$nulls":14},0]
[{"$nulls":14},0]
[{"$nulls":14},0]
[{"$nulls":14},0]
[{"$nulls":14},0]
[{"$nulls":14},0]
[{"$nulls":14},0]
[{"$nulls":14},0]
[{"$nulls":14},0]
[{"$nulls":14},0]
[{"$nulls":14},0]
[{"$nulls":14},0]
[{"$nulls":14},0]
[{"$nulls":14},0]
[]
[" Összesen",{"$nulls":7},{"$f":"SUM(I10:I27)","v":0},0,0,0,0,0,0]

{"sheet":"(53) egyéb szolgáltatások","index":4,"n_rows":25,"n_cols":17,"rows_kept":25,"cut":false,"hidden":false,"merged":[[6,11,6,14],[6,16,7,16],[1,0,1,3],[1,4,1,8],[2,0,2,3],[2,4,2,8],[3,0,3,3],[3,4,3,8],[0,0,0,3],[0,4,0,8],[24,0,24,6],[6,7,7,7],[6,15,7,15],[24,15,24,16],[6,4,7,4],[23,0,23,16],[6,8,6,10],[6,5,7,5],[6,3,7,3],[6,6,7,6],[4,0,4,16],[6,0,7,0],[6,1,7,1],[6,2,7,2]]}
["Kedvezményezett neve:"]
["Kötelezettségvállalás azonosító száma:"]
["Szerződésszám:"]
["Az elszámolással érintett időszak kezdete és vége:"]
["53 EGYÉB SZOLGÁLTATÁSOK"]
[]
["Sor-szám","Számviteli bizonylat kiállítójának neve","Adószáma","Számviteli bizonylat sorszáma","Kiállítás kelte","Teljesítés dátuma","Pénzügyi teljesítés időpontja","Gazdasági esemény rövid leírása","Összege (Ft)",null,null,"Projekt terhére elszámolt költségek (Ft)",null,null,null,"Támogatás típusa","Tám. int."]
["szám",{"$nulls":7},"Bruttó","Nettó","ÁFA","Támogatás","Saját forrás","Egyéb f.","Összesen"]
["1.",{"$nulls":13},{"$f":"SUM(L9:N9)","v":0},"K+F/Alap."]
["2.",{"$nulls":13},{"$f":"SUM(L10:N10)","v":0}]
[{"$nulls":14},0]
[{"$nulls":14},0]
[{"$nulls":14},0]
[{"$nulls":14},0]
[{"$nulls":14},0]
[{"$nulls":14},0]
[{"$nulls":14},0]
[{"$nulls":14},0]
[{"$nulls":14},0]
[{"$nulls":14},0]
[{"$nulls":14},0]
[{"$nulls":14},0]
[{"$nulls":14},0]
[]
[" Összesen",{"$nulls":6},{"$f":"SUM(H9:H23)","v":0},0,0,0,0,0,0,0]

{"sheet":"(11) immat jav beszerz","index":5,"n_rows":32,"n_cols":20,"rows_kept":32,"cut":false,"hidden":false,"merged":[[7,4,8,4],[7,5,8,5],[7,6,8,6],[1,0,1,3],[1,4,1,8],[2,0,2,3],[2,4,2,8],[3,0,3,3],[3,4,3,8],[0,0,0,3],[0,4,0,8],[26,0,26,10],[7,19,8,19],[25,0,25,19],[7,9,8,9],[7,18,8,18],[7,7,7,8],[7,10,8,10],[7,11,7,13],[7,14,7,17],[7,0,8,0],[7,1,8,1],[7,2,8,2],[5,0,5,19],[7,3,8,3]]}
["Kedvezményezett neve:"]
["Kötelezettségvállalás azonosító száma:"]
["Szerződésszám:"]
["Az elszámolással érintett időszak kezdete és vége:"]
[]
[" 11 IMMATERIÁLIS JAVAK BESZERZÉSE"]
[]
["Sor-szám","Számviteli bizonylat kiállítójának neve","Adószáma","Számviteli bizonylat sorszáma","Kiállítás kelte","Teljesítés dátuma","Pénzügyi teljesítés időpontja","Amortizációnál az elszámolt időszak",null,"amortizá-ciós kulcs %","Gazdasági esemény rövid leírása","Összege (Ft)",null,null,"Projekt terhére elszámolt költségek (Ft)",null,null,null,"Támogatás típusa","Tám. int."]
["szám",{"$nulls":6},"kezdete (dátum)","vége (dátum)",null,null,"Bruttó","Nettó","ÁFA","Támogatás","Saját forrás","Egyéb f.","Összesen"]
["1.",{"$nulls":16},{"$f":"SUM(O10:Q10)","v":0}]
["2.",{"$nulls":16},{"$f":"SUM(O11:Q11)","v":0}]
[{"$nulls":17},0]
[{"$nulls":17},0]
[{"$nulls":17},0]
[{"$nulls":17},0]
[{"$nulls":17},0]
[{"$nulls":17},0]
[{"$nulls":17},0]
[{"$nulls":17},0]
[{"$nulls":17},0]
[{"$nulls":17},0]
[{"$nulls":17},0]
[{"$nulls":17},0]
[{"$nulls":17},0]
[{"$nulls":17},0]
[]
["Összesen",{"$nulls":10},{"$f":"SUM(L10:L26)","v":0},{"$f":"SUM(M10:M26)","v":0},0,{"$f":"SUM(O10:O26)","v":0},{"$f":"SUM(P10:P26)","v":0},0,0]
[]
[]
[]
[]
["* Az aláírók nevét nyomtatott betűkkel is kérjük kitölteni."]

{"sheet":"(13) műszaki berendezések","index":6,"n_rows":27,"n_cols":20,"rows_kept":27,"cut":false,"hidden":false,"merged":[[3,0,3,3],[3,4,3,8],[0,0,0,3],[0,4,0,8],[1,0,1,3],[1,4,1,8],[2,0,2,3],[2,4,2,8],[5,0,5,19],[7,0,8,0],[7,1,8,1],[7,2,8,2],[7,3,8,3],[7,4,8,4],[7,5,8,5],[7,6,8,6],[7,7,7,8],[7,9,8,9],[7,19,8,19],[26,0,26,10],[7,10,8,10],[7,11,7,13],[7,14,7,17],[7,18,8,18],[25,0,25,19]]}
["Kedvezményezett neve:",null,null,null,{"$f":"+'Költségösszesítő nyilatkozat'!$B4","v":0}]
["Kötelezettségvállalás azonosító száma:"]
["Szerződésszám:",null,null,null,{"$f":"+'Költségösszesítő nyilatkozat'!$B6","v":0}]
["Az elszámolással érintett időszak kezdete és vége:",null,null,null,{"$f":"+'Költségösszesítő nyilatkozat'!$B7","v":"00:00:00"}]
[]
["13 Műszaki berendezések, gépek, járművek"]
[]
["Sor-szám","Számviteli bizonylat kiállítójának neve","Adószáma","Számviteli bizonylat sorszáma","Kiállítás kelte","Teljesítés dátuma","Pénzügyi teljesítés időpontja","Amortizációnál az elszámolt időszak",null,"amortizá-ciós kulcs %","Gazdasági esemény rövid leírása","Összege (Ft)",null,null,"Projekt terhére elszámolt költségek (Ft)",null,null,null,"Támogatás típusa","Tám. int."]
["szám",{"$nulls":6},"kezdete (dátum)","vége (dátum)",null,null,"Bruttó","Nettó","ÁFA","Támogatás","Saját forrás","Egyéb f.","Összesen"]
["1.",{"$nulls":16},{"$f":"SUM(O10:Q10)","v":0},"K+F/Alap."]
["2.",{"$nulls":16},{"$f":"SUM(O11:Q11)","v":0}]
[{"$nulls":17},0]
[{"$nulls":17},0]
[{"$nulls":17},0]
[{"$nulls":17},0]
[{"$nulls":17},0]
[{"$nulls":17},0]
[{"$nulls":17},0]
[{"$nulls":17},0]
[{"$nulls":17},0]
[{"$nulls":17},0]
[{"$nulls":17},0]
[{"$nulls":17},0]
[{"$nulls":17},0]
[{"$nulls":17},0]
[]
["Összesen",{"$nulls":10},{"$f":"SUM(L10:L26)","v":0},{"$f":"SUM(M10:M26)","v":0},0,{"$f":"SUM(O10:O26)","v":0},{"$f":"SUM(P10:P26)","v":0},0,0]

{"sheet":"(14) egyéb berendezések","index":7,"n_rows":27,"n_cols":20,"rows_kept":27,"cut":false,"hidden":false,"merged":[[3,0,3,3],[3,4,3,8],[26,0,26,10],[7,10,8,10],[7,11,7,13],[7,14,7,17],[7,18,8,18],[7,19,8,19],[25,0,25,19],[5,0,5,19],[7,0,8,0],[7,1,8,1],[7,2,8,2],[7,3,8,3],[7,4,8,4],[7,5,8,5],[7,6,8,6],[7,7,7,8],[7,9,8,9],[0,0,0,3],[0,4,0,8],[1,0,1,3],[1,4,1,8],[2,0,2,3],[2,4,2,8]]}
["Kedvezményezett neve:",null,null,null,{"$f":"+'Költségösszesítő nyilatkozat'!$B4","v":0}]
["Kötelezettségvállalás azonosító száma:"]
["Szerződésszám:",null,null,null,{"$f":"+'Költségösszesítő nyilatkozat'!$B6","v":0}]
["Az elszámolással érintett időszak kezdete és vége:",null,null,null,{"$f":"+'Költségösszesítő nyilatkozat'!$B7","v":"00:00:00"}]
[]
["14 Egyéb  berendezések, felszerelések, járművek"]
[]
["Sor-szám","Számviteli bizonylat kiállítójának neve","Adószáma","Számviteli bizonylat sorszáma","Kiállítás kelte","Teljesítés dátuma","Pénzügyi teljesítés időpontja","Amortizációnál az elszámolt időszak",null,"amortizá-ciós kulcs %","Gazdasági esemény rövid leírása","Összege (Ft)",null,null,"Projekt terhére elszámolt költségek (Ft)",null,null,null,"Támogatás típusa","Tám. int."]
["szám",{"$nulls":6},"kezdete (dátum)","vége (dátum)",null,null,"Bruttó","Nettó","ÁFA","Támogatás","Saját forrás","Egyéb f.","Összesen"]
["1.",{"$nulls":16},{"$f":"SUM(O10:Q10)","v":0},"K+F/Alap."]
["2.",{"$nulls":16},{"$f":"SUM(O11:Q11)","v":0}]
[{"$nulls":17},0]
[{"$nulls":17},0]
[{"$nulls":17},0]
[{"$nulls":17},0]
[{"$nulls":17},0]
[{"$nulls":17},0]
[{"$nulls":17},0]
[{"$nulls":17},0]
[{"$nulls":17},0]
[{"$nulls":17},0]
[{"$nulls":17},0]
[{"$nulls":17},0]
[{"$nulls":17},0]
[{"$nulls":17},0]
[]
["Összesen",{"$nulls":10},{"$f":"SUM(L10:L26)","v":0},{"$f":"SUM(M10:M26)","v":0},0,{"$f":"SUM(O10:O26)","v":0},{"$f":"SUM(P10:P26)","v":0},0,0]

{"sheet":"(16) beruházás,felújítás","index":8,"n_rows":27,"n_cols":20,"rows_kept":27,"cut":false,"hidden":false,"merged":[[3,0,3,3],[3,4,3,8],[0,0,0,3],[0,4,0,8],[1,0,1,3],[1,4,1,8],[2,0,2,3],[2,4,2,8],[5,0,5,19],[7,0,8,0],[7,1,8,1],[7,2,8,2],[7,3,8,3],[7,4,8,4],[7,5,8,5],[7,6,8,6],[7,7,7,8],[7,9,8,9],[7,19,8,19],[26,0,26,10],[7,10,8,10],[7,11,7,13],[7,14,7,17],[7,18,8,18],[25,0,25,19]]}
["Kedvezményezett neve:"]
["Kötelezettségvállalás azonosító száma:"]
["Szerződésszám:"]
["Az elszámolással érintett időszak kezdete és vége:"]
[]
["16 BERUZÁZÁSOK, FELÚJÍTÁSOK "]
[]
["Sor-szám","Számviteli bizonylat kiállítójának neve","Adószáma","Számviteli bizonylat sorszáma","Kiállítás kelte","Teljesítés dátuma","Pénzügyi teljesítés időpontja","Amortizációnál az elszámolt időszak",null,"amortizá-ciós kulcs %","Gazdasági esemény rövid leírása","Összege (Ft)",null,null,"Projekt terhére elszámolt költségek (Ft)",null,null,null,"Támogatás típusa","Tám. int."]
["szám",{"$nulls":6},"kezdete (dátum)","vége (dátum)",null,null,"Bruttó","Nettó","ÁFA","Támogatás","Saját forrás","Egyéb f.","Összesen"]
["1.",{"$nulls":16},{"$f":"SUM(O10:Q10)","v":0},"Kut.infra.- b.r."]
["2.",{"$nulls":16},{"$f":"SUM(O11:Q11)","v":0}]
[{"$nulls":17},0]
[{"$nulls":17},0]
[{"$nulls":17},0]
[{"$nulls":17},0]
[{"$nulls":17},0]
[{"$nulls":17},0]
[{"$nulls":17},0]
[{"$nulls":17},0]
[{"$nulls":17},0]
[{"$nulls":17},0]
[{"$nulls":17},0]
[{"$nulls":17},0]
[{"$nulls":17},0]
[{"$nulls":17},0]
[]
["Összesen",{"$nulls":10},{"$f":"SUM(L10:L26)","v":0},{"$f":"SUM(M10:M26)","v":0},0,{"$f":"SUM(O10:O26)","v":0},{"$f":"SUM(P10:P26)","v":0},0,0]

{"sheet":"(LNY) lemondó nyilatkozat","index":9,"n_rows":32,"n_cols":2,"rows_kept":32,"cut":false,"hidden":false,"merged":[[6,0,6,1],[16,0,16,1],[31,0,31,1]]}
[]
["Egy példányban kitöltve, eredeti aláírással és bélyegzéssel ellátva kell benyújtani."]
[]
[]
[]
[]
["Lemondó Nyilatkozat"]
[]
[]
[]
["Kedvezményezett neve"]
["Kötelezettségvállalás azonosító száma"]
["Szerződésszám"]
["Mérföldkő dátuma:"]
[]
[]
["Alulírott <név>, mint a <kedvezményezett megnevezése> társaság/szervezet cégjegyzésre jogosult vezetője nyilatkozom, hogy a fenti azonosító számú projekt megvalósításához a megítélt támogatásból összesen <a ténylegesen elszámolt támogatás összege> Ft került felhasználásra. A fennmaradó <a megítélt és a tényleges támogatás különbsége> Ft támogatást a továbbiakban nem kívánom igénybe venni, így arról lemondok. "]
[]
[]
["Hely, dátum"]
[]
[]
[]
[null,"………………………………"]
[null,"Kedvezményezett cégszerű *"]
[null,"aláírása"]
[null,"Ph."]
[]
[]
[]
[]
["* Az aláírók nevét nyomtatott betűkkel is kérjük kitölteni"]

{"sheet":"Támogatás típusa","index":10,"n_rows":10,"n_cols":3,"rows_kept":10,"cut":false,"hidden":false,"merged":[[1,1,1,2],[3,2,4,2],[5,2,6,2]]}
[]
["támogatás típus rövídítése","támogatás típusa"]
[]
["K+F/Alkalm.","Alkalmazott (ipari) kutatás","Kutatás-fejlesztési projekthez nyújtott támogatás "]
["K+F/Kis.fejl.","Kísérleti fejlesztés"]
["D.M./Közbesz.","Közbeszerzés","De minimis támogatás"]
["D.M./Koord.","Koordinációs költség"]
["Megújuló","Megújuló energia támogatására irányuló beruházási támogatás","Megújuló energia támogatására irányuló beruházási támogatás"]
["Helyi infra","Helyi infrastruktúrára irányuló támogatás","Helyi infrastruktúrára irányuló támogatás"]
["Nem állami támogatás","Nem állami támogatás","Nem állami támogatás"]

{"sheet":"támogatás típusai","index":11,"n_rows":14,"n_cols":3,"rows_kept":14,"cut":false,"hidden":true,"merged":[[1,1,1,2],[4,2,5,2],[7,2,11,2]]}
[]
["támogatás típus rövídítése","támogatás típusa"]
[]
["K+F/Alap.","Alapkutatás","Kutatás-fejlesztési projekthez nyújtott támogatás "]
["K+F/Alkalm.","Alkalmazott (ipari) kutatás"]
["K+F/Kis.fejl.","Kísérleti fejlesztés"]
["D.M./Közbesz.","Közbeszerzés","De minimis támogatás"]
["D.M./Koord.","Koordinációs költség"]
["D.M./Tájék.","Tájékoztatási költség"]
["D.M./Piac","Piacra jutáshoz kapcsolódó költségek"]
["D.M./Iparjog","Iparjogvédelemmel kapcsolatos költségek"]
["D.M./Rezsi","Általános (rezsi) költségek"]
["Kut.infra.- b.r.","Kutatási infrastruktúrához nyújtott beruházási támogatás","Kutatási infrastruktúrához nyújtott beruházási támogatás"]
["Nem állami támogatás","Nem állami támogatás"]